Workbook

Sheet Guida
B4: LIQUIDITÀ PERSONALE
B5: Questa cartella di lavoro include i fogli per la liquidità annuale, mensile e giornaliera . Scegliere il tipo di liquidità preferito o usarli tutti per ottenere maggiori dettagli sulla propria liquidità personale.
B9: Liquidità annuale | D9: Liquidità mensile | F9: Liquidità giornaliera
B11: Immettere l'importo della liquidità annuale in diverse aree. Osservare quindi il dettaglio della spesa mensile e il confronto tra i vari mesi, nonché il totale delle spese mensili e annuali. | D11: Immettere la liquidità di cassa mensile effettiva oppure calcolare una stima dei mesi residui per visualizzare la liquidità prevista per l'anno mese per mese. | F11: Immettere l'importo stimato della liquidità giornaliera ed esaminare i totali stimati mensili e annuali. Usare queste informazioni per avere un'idea delle abitudini di spesa giornaliere nel corso di un mese o di un anno.

Sheet Liquidità annuale
B1: LIQUIDITÀ PERSONALE
B2: =LiquiditàAnnuale1 -> € 39,750.00 | H2: Questa è una stima annuale. Usare questo foglio di lavoro per visualizzare gli importi annui con i valori stimati mensili. Per aggiungere voci giornaliere alle tabelle, stimarne l'importo o il valore annuo e inserirlo nella colonna Annuale.
B5: RIEPILOGO REDDITI | F5: RIEPILOGO SPESE | J5: RIEPILOGO SPESE DISCREZIONALI | N5: RIEPILOGO RISPARMI
B6: Totale annuale: | C6: =tblReddito[[#Totals],[Annuale]] -> € 125,000.00 | F6: Totale annuale: | G6: =tblSpese[[#Totals],[Annuale ]] -> € 49,000.00 | J6: Totale annuale: | K6: =tblDiscrezionali[[#Totals],[Annuale ]] -> € 13,250.00 | N6: Totale annuale: | O6: =tblRisparmi[[#Totals],[Annuale ]] -> € 23,000.00
B26: Totale mensile: | C26: =tblReddito[[#Totals],[Mensile ]] -> € 10,416.67 | F26: Totale mensile: | G26: =tblSpese[[#Totals],[Mensile]] -> € 4,083.33 | J26: Totale mensile: | K26: =tblDiscrezionali[[#Totals],[Mensile]] -> € 1,104.17 | N26: Totale mensile: | O26: =tblRisparmi[[#Totals],[Mensile ]] -> € 1,916.67
B29: Redditi | C29: Annuale | D29: Mensile | F29: Spese | G29: Annuale | H29: Mensile | J29: Spese discrezionali | K29: Annuale | L29: Mensile | N29: Risparmi | O29: Annuale | P29: Mensile
B30: Stipendio | C30: € 90,000.00 | D30: =tblReddito[[#This Row],[Annuale]]/12 -> € 7,500.00 | F30: Assicurazione sanitaria | G30: € 15,000.00 | H30: =tblSpese[[#This Row],[Annuale ]]/12 -> € 1,250.00 | J30: Ristoranti | K30: € 1,200.00 | L30: =tblDiscrezionali[[#This Row],[Annuale ]]/12 -> € 100.00 | N30: Liquidità | O30: € 5,000.00 | P30: =tblRisparmi[[#This Row],[Annuale ]]/12 -> € 416.67
B31: Commissioni/bonus | C31: € 5,000.00 | D31: =tblReddito[[#This Row],[Annuale]]/12 -> € 416.67 | F31: Imposte | G31: € 2,500.00 | H31: =tblSpese[[#This Row],[Annuale ]]/12 -> € 208.33 | J31: Regali | K31: € 600.00 | L31: =tblDiscrezionali[[#This Row],[Annuale ]]/12 -> € 50.00 | N31: Fondi pensione | O31: € 12,000.00 | P31: =tblRisparmi[[#This Row],[Annuale ]]/12 -> € 1,000.00
B32: Altro 1 | C32: € 30,000.00 | D32: =tblReddito[[#This Row],[Annuale]]/12 -> € 2,500.00 | F32: Tassa auto | G32: € 200.00 | H32: =tblSpese[[#This Row],[Annuale ]]/12 -> € 16.67 | J32: Viaggi | K32: € 2,250.00 | L32: =tblDiscrezionali[[#This Row],[Annuale ]]/12 -> € 187.50 | N32: Risparmi/Investimenti | O32: € 6,000.00 | P32: =tblRisparmi[[#This Row],[Annuale ]]/12 -> € 500.00
B33: Altro 2 | D33: =tblReddito[[#This Row],[Annuale]]/12 -> € 0.00 | F33: Pagamenti auto | G33: € 4,000.00 | H33: =tblSpese[[#This Row],[Annuale ]]/12 -> € 333.33 | J33: Svaghi | K33: € 1,200.00 | L33: =tblDiscrezionali[[#This Row],[Annuale ]]/12 -> € 100.00 | N33: Altro 1 | P33: =tblRisparmi[[#This Row],[Annuale ]]/12 -> € 0.00
B34: Altro 3 | D34: =tblReddito[[#This Row],[Annuale]]/12 -> € 0.00 | F34: Mutuo/Affitto | G34: € 15,000.00 | H34: =tblSpese[[#This Row],[Annuale ]]/12 -> € 1,250.00 | J34: Cura personale | K34: € 300.00 | L34: =tblDiscrezionali[[#This Row],[Annuale ]]/12 -> € 25.00 | N34: Altro 2 | P34: =tblRisparmi[[#This Row],[Annuale ]]/12 -> € 0.00
B35: Altro 4 | D35: =tblReddito[[#This Row],[Annuale]]/12 -> € 0.00 | F35: Assicurazione | G35: € 250.00 | H35: =tblSpese[[#This Row],[Annuale ]]/12 -> € 20.83 | J35: Acquisti | K35: € 2,000.00 | L35: =tblDiscrezionali[[#This Row],[Annuale ]]/12 -> € 166.67 | N35: Totale | O35: =SUBTOTAL(109,tblRisparmi[[Annuale ]]) -> € 23,000.00 | P35: =SUBTOTAL(109,tblRisparmi[[Mensile ]]) -> € 1,916.67
B36: Totale | C36: =SUBTOTAL(109,tblReddito[Annuale]) -> € 125,000.00 | D36: =SUBTOTAL(109,tblReddito[[Mensile ]]) -> € 10,416.67 | F36: Elettricità | G36: € 1,200.00 | H36: =tblSpese[[#This Row],[Annuale ]]/12 -> € 100.00 | J36: Beneficenza | K36: € 600.00 | L36: =tblDiscrezionali[[#This Row],[Annuale ]]/12 -> € 50.00
F37: Gas | G37: € 600.00 | H37: =tblSpese[[#This Row],[Annuale ]]/12 -> € 50.00 | J37: Iscrizioni a gruppi | K37: € 300.00 | L37: =tblDiscrezionali[[#This Row],[Annuale ]]/12 -> € 25.00
F38: Acqua/Fognatura | G38: € 600.00 | H38: =tblSpese[[#This Row],[Annuale ]]/12 -> € 50.00 | J38: Ristrutturazioni casa | K38: € 4,800.00 | L38: =tblDiscrezionali[[#This Row],[Annuale ]]/12 -> € 400.00
F39: Spazzatura | G39: € 150.00 | H39: =tblSpese[[#This Row],[Annuale ]]/12 -> € 12.50 | J39: Altro 1 | L39: =tblDiscrezionali[[#This Row],[Annuale ]]/12 -> € 0.00
F40: Telefono | G40: € 600.00 | H40: =tblSpese[[#This Row],[Annuale ]]/12 -> € 50.00 | J40: Altro 2 | L40: =tblDiscrezionali[[#This Row],[Annuale ]]/12 -> € 0.00
F41: Internet | G41: € 600.00 | H41: =tblSpese[[#This Row],[Annuale ]]/12 -> € 50.00 | J41: Totale | K41: =SUBTOTAL(109,tblDiscrezionali[[Annuale ]]) -> € 13,250.00 | L41: =SUBTOTAL(109,tblDiscrezionali[Mensile]) -> € 1,104.17
F42: Assicurazione sulla vita | G42: € 1,500.00 | H42: =tblSpese[[#This Row],[Annuale ]]/12 -> € 125.00
F43: Cibo | G43: € 5,000.00 | H43: =tblSpese[[#This Row],[Annuale ]]/12 -> € 416.67
F44: Abbigliamento | G44: € 1,200.00 | H44: =tblSpese[[#This Row],[Annuale ]]/12 -> € 100.00
F45: Spese mediche | G45: € 600.00 | H45: =tblSpese[[#This Row],[Annuale ]]/12 -> € 50.00
F46: Altro 1 | H46: =tblSpese[[#This Row],[Annuale ]]/12 -> € 0.00
F47: Altro 2 | H47: =tblSpese[[#This Row],[Annuale ]]/12 -> € 0.00
F48: Totale | G48: =SUBTOTAL(109,tblSpese[[Annuale ]]) -> € 49,000.00 | H48: =SUBTOTAL(109,tblSpese[Mensile]) -> € 4,083.33

Sheet Liquidità mensile
B1: LIQUIDITÀ PERSONALE
B2: =LiquiditàMensile -> € 18,380.00 | H2: NOTA: per le voci giornaliere stimare l'importo o il valore mensile e inserirlo nella colonna del mese appropriato.
B5: Tipo | C5: Descrizione | D5: gen | E5: feb | F5: mar | G5: apr | H5: Maggio | I5: giu | J5: lug | K5: ago | L5: set | M5: ott | N5: nov | O5: dic | P5: Totale
B6: Redditi | C6: Stipendio | D6: € 7,500.00 | E6: € 7,500.00 | F6: € 7,500.00 | G6: € 7,500.00 | H6: € 7,500.00 | I6: € 7,500.00 | P6: =SUM(tblMensile[[#This Row],[gen]:[dic]]) -> € 45,000.00
B7: Redditi | C7: Commissioni/bonus | D7: € 400.00 | E7: € 400.00 | F7: € 500.00 | G7: € 200.00 | H7: € 0.00 | I7: € 600.00 | P7: =SUM(tblMensile[[#This Row],[gen]:[dic]]) -> € 2,100.00
B8: Redditi | C8: Altro 1 | D8: € 2,500.00 | E8: € 2,500.00 | F8: € 2,500.00 | G8: € 2,500.00 | H8: € 2,500.00 | I8: € 2,500.00 | P8: =SUM(tblMensile[[#This Row],[gen]:[dic]]) -> € 15,000.00
B9: Redditi | C9: Altro 2 | D9: € 0.00 | E9: € 0.00 | F9: € 0.00 | G9: € 0.00 | H9: € 0.00 | I9: € 0.00 | P9: =SUM(tblMensile[[#This Row],[gen]:[dic]]) -> € 0.00
B10: Redditi | C10: Altro 3 | D10: € 0.00 | E10: € 0.00 | F10: € 0.00 | G10: € 0.00 | H10: € 0.00 | I10: € 0.00 | P10: =SUM(tblMensile[[#This Row],[gen]:[dic]]) -> € 0.00
B11: Redditi | C11: Altro 4 | D11: € 0.00 | E11: € 0.00 | F11: € 0.00 | G11: € 0.00 | H11: € 0.00 | I11: € 0.00 | P11: =SUM(tblMensile[[#This Row],[gen]:[dic]]) -> € 0.00
B12: Spese | C12: Assicurazione sanitaria | D12: € 1,250.00 | E12: € 1,250.00 | F12: € 1,250.00 | G12: € 1,250.00 | H12: € 1,250.00 | I12: € 1,250.00 | P12: =SUM(tblMensile[[#This Row],[gen]:[dic]]) -> € 7,500.00
B13: Spese | C13: Imposte | D13: € 208.33 | E13: € 208.33 | F13: € 208.33 | G13: € 208.33 | H13: € 208.33 | I13: € 208.33 | P13: =SUM(tblMensile[[#This Row],[gen]:[dic]]) -> € 1,250.00
B14: Spese | C14: Tassa auto | D14: € 16.67 | E14: € 16.67 | F14: € 16.67 | G14: € 16.67 | H14: € 16.67 | I14: € 16.67 | P14: =SUM(tblMensile[[#This Row],[gen]:[dic]]) -> € 100.00
B15: Spese | C15: Pagamenti auto | D15: € 333.33 | E15: € 333.33 | F15: € 333.33 | G15: € 333.33 | H15: € 333.33 | I15: € 333.33 | P15: =SUM(tblMensile[[#This Row],[gen]:[dic]]) -> € 2,000.00
B16: Spese | C16: Mutuo/Affitto | D16: € 1,250.00 | E16: € 1,250.00 | F16: € 1,250.00 | G16: € 1,250.00 | H16: € 1,250.00 | I16: € 1,250.00 | P16: =SUM(tblMensile[[#This Row],[gen]:[dic]]) -> € 7,500.00
B17: Spese | C17: Assicurazione | D17: € 25.00 | E17: € 25.00 | F17: € 25.00 | G17: € 25.00 | H17: € 25.00 | I17: € 25.00 | P17: =SUM(tblMensile[[#This Row],[gen]:[dic]]) -> € 150.00
B18: Spese | C18: Elettricità | D18: € 100.00 | E18: € 100.00 | F18: € 100.00 | G18: € 100.00 | H18: € 100.00 | I18: € 100.00 | P18: =SUM(tblMensile[[#This Row],[gen]:[dic]]) -> € 600.00
B19: Spese | C19: Gas | D19: € 50.00 | E19: € 50.00 | F19: € 50.00 | G19: € 50.00 | H19: € 50.00 | I19: € 50.00 | P19: =SUM(tblMensile[[#This Row],[gen]:[dic]]) -> € 300.00
B20: Spese | C20: Acqua | D20: € 50.00 | E20: € 50.00 | F20: € 50.00 | G20: € 50.00 | H20: € 50.00 | I20: € 50.00 | P20: =SUM(tblMensile[[#This Row],[gen]:[dic]]) -> € 300.00
B21: Spese | C21: Fognatura | D21: € 25.00 | E21: € 25.00 | F21: € 25.00 | G21: € 25.00 | H21: € 25.00 | I21: € 25.00 | P21: =SUM(tblMensile[[#This Row],[gen]:[dic]]) -> € 150.00
B22: Spese | C22: Spazzatura | D22: € 12.50 | E22: € 12.50 | F22: € 12.50 | G22: € 12.50 | H22: € 12.50 | I22: € 12.50 | P22: =SUM(tblMensile[[#This Row],[gen]:[dic]]) -> € 75.00
B23: Spese | C23: Telefono | D23: € 50.00 | E23: € 50.00 | F23: € 50.00 | G23: € 50.00 | H23: € 50.00 | I23: € 50.00 | P23: =SUM(tblMensile[[#This Row],[gen]:[dic]]) -> € 300.00
B24: Spese | C24: Internet | D24: € 50.00 | E24: € 50.00 | F24: € 50.00 | G24: € 50.00 | H24: € 50.00 | I24: € 50.00 | P24: =SUM(tblMensile[[#This Row],[gen]:[dic]]) -> € 300.00
B25: Spese | C25: Assicurazione sulla vita | D25: € 125.00 | E25: € 125.00 | F25: € 125.00 | G25: € 125.00 | H25: € 125.00 | I25: € 125.00 | P25: =SUM(tblMensile[[#This Row],[gen]:[dic]]) -> € 750.00
B26: Spese | C26: Cibo | D26: € 400.00 | E26: € 500.00 | F26: € 450.00 | G26: € 400.00 | H26: € 450.00 | I26: € 425.00 | P26: =SUM(tblMensile[[#This Row],[gen]:[dic]]) -> € 2,625.00
B27: Spese | C27: Abbigliamento | D27: € 50.00 | E27: € 75.00 | F27: € 100.00 | G27: € 75.00 | H27: € 125.00 | I27: € 75.00 | P27: =SUM(tblMensile[[#This Row],[gen]:[dic]]) -> € 500.00
B28: Spese | C28: Spese mediche | D28: € 50.00 | E28: € 10.00 | F28: € 25.00 | G28: € 25.00 | H28: € 20.00 | I28: € 70.00 | P28: =SUM(tblMensile[[#This Row],[gen]:[dic]]) -> € 200.00
B29: Spese | C29: Mezzi pubblici | D29: € 30.00 | E29: € 30.00 | F29: € 30.00 | G29: € 20.00 | H29: € 30.00 | I29: € 30.00 | P29: =SUM(tblMensile[[#This Row],[gen]:[dic]]) -> € 170.00
B30: Spese | C30: Altro 2 | D30: € 0.00 | E30: € 0.00 | F30: € 0.00 | G30: € 0.00 | H30: € 0.00 | I30: € 0.00 | P30: =SUM(tblMensile[[#This Row],[gen]:[dic]]) -> € 0.00
B31: Spese | C31: Altro 3 | D31: € 0.00 | E31: € 0.00 | F31: € 0.00 | G31: € 0.00 | H31: € 0.00 | I31: € 0.00 | P31: =SUM(tblMensile[[#This Row],[gen]:[dic]]) -> € 0.00
B32: Spese | C32: Altro 4 | D32: € 0.00 | E32: € 0.00 | F32: € 0.00 | G32: € 0.00 | H32: € 0.00 | I32: € 0.00 | P32: =SUM(tblMensile[[#This Row],[gen]:[dic]]) -> € 0.00
B33: Discrezionali | C33: Ristoranti | D33: € 50.00 | E33: € 150.00 | F33: € 100.00 | G33: € 50.00 | H33: € 150.00 | I33: € 100.00 | P33: =SUM(tblMensile[[#This Row],[gen]:[dic]]) -> € 600.00
B34: Discrezionali | C34: Regali | D34: € 25.00 | E34: € 75.00 | F34: € 50.00 | G34: € 25.00 | H34: € 75.00 | I34: € 50.00 | P34: =SUM(tblMensile[[#This Row],[gen]:[dic]]) -> € 300.00
B35: Discrezionali | C35: Viaggi | D35: € 0.00 | E35: € 0.00 | F35: € 1,000.00 | G35: € 0.00 | H35: € 0.00 | I35: € 1,000.00 | P35: =SUM(tblMensile[[#This Row],[gen]:[dic]]) -> € 2,000.00
B36: Discrezionali | C36: Svaghi | D36: € 50.00 | E36: € 150.00 | F36: € 100.00 | G36: € 50.00 | H36: € 150.00 | I36: € 100.00 | P36: =SUM(tblMensile[[#This Row],[gen]:[dic]]) -> € 600.00
B37: Discrezionali | C37: Cura personale | D37: € 15.00 | E37: € 25.00 | F37: € 35.00 | G37: € 15.00 | H37: € 25.00 | I37: € 35.00 | P37: =SUM(tblMensile[[#This Row],[gen]:[dic]]) -> € 150.00
B38: Discrezionali | C38: Acquisti | D38: € 100.00 | E38: € 200.00 | F38: € 150.00 | G38: € 175.00 | H38: € 150.00 | I38: € 175.00 | P38: =SUM(tblMensile[[#This Row],[gen]:[dic]]) -> € 950.00
B39: Discrezionali | C39: Beneficenza | D39: € 50.00 | E39: € 50.00 | F39: € 50.00 | G39: € 50.00 | H39: € 50.00 | I39: € 50.00 | P39: =SUM(tblMensile[[#This Row],[gen]:[dic]]) -> € 300.00
B40: Discrezionali | C40: Iscrizioni a gruppi | D40: € 25.00 | E40: € 25.00 | F40: € 25.00 | G40: € 25.00 | H40: € 25.00 | I40: € 25.00 | P40: =SUM(tblMensile[[#This Row],[gen]:[dic]]) -> € 150.00
B41: Discrezionali | C41: Ristrutturazioni casa | D41: € 400.00 | E41: € 400.00 | F41: € 400.00 | G41: € 400.00 | H41: € 400.00 | I41: € 400.00 | P41: =SUM(tblMensile[[#This Row],[gen]:[dic]]) -> € 2,400.00
B42: Discrezionali | C42: Altro 1 | D42: € 0.00 | E42: € 0.00 | F42: € 0.00 | G42: € 0.00 | H42: € 0.00 | I42: € 0.00 | P42: =SUM(tblMensile[[#This Row],[gen]:[dic]]) -> € 0.00
B43: Discrezionali | C43: Altro 2 | D43: € 0.00 | E43: € 0.00 | F43: € 0.00 | G43: € 0.00 | H43: € 0.00 | I43: € 0.00 | P43: =SUM(tblMensile[[#This Row],[gen]:[dic]]) -> € 0.00
B44: Risparmi | C44: Liquidità | D44: € 416.67 | E44: € 416.67 | F44: € 416.67 | G44: € 416.67 | H44: € 416.67 | I44: € 416.67 | P44: =SUM(tblMensile[[#This Row],[gen]:[dic]]) -> € 2,500.00
B45: Risparmi | C45: Fondi pensione | D45: € 1,000.00 | E45: € 1,000.00 | F45: € 1,000.00 | G45: € 1,000.00 | H45: € 1,000.00 | I45: € 1,000.00 | P45: =SUM(tblMensile[[#This Row],[gen]:[dic]]) -> € 6,000.00
B46: Risparmi | C46: Risparmi/Investimenti | D46: € 500.00 | E46: € 500.00 | F46: € 500.00 | G46: € 500.00 | H46: € 500.00 | I46: € 500.00 | P46: =SUM(tblMensile[[#This Row],[gen]:[dic]]) -> € 3,000.00
B47: Risparmi | C47: Altro 1 | D47: € 0.00 | E47: € 0.00 | F47: € 0.00 | G47: € 0.00 | H47: € 0.00 | I47: € 0.00 | P47: =SUM(tblMensile[[#This Row],[gen]:[dic]]) -> € 0.00
B48: Risparmi | C48: Altro 2 | D48: € 0.00 | E48: € 0.00 | F48: € 0.00 | G48: € 0.00 | H48: € 0.00 | I48: € 0.00 | P48: =SUM(tblMensile[[#This Row],[gen]:[dic]]) -> € 0.00
B49: Totale | D49: =SUMIF(tblMensile[Tipo],"Redditi",tblMensile[gen])-SUMIF(tblMensile[Tipo],"<>Redditi",tblMensile[gen]) -> € 3,692.50 | E49: =SUMIF(tblMensile[Tipo],"Redditi",tblMensile[feb])-SUMIF(tblMensile[Tipo],"<>Redditi",tblMensile[feb]) -> € 3,247.50 | F49: =SUMIF(tblMensile[Tipo],"Redditi",tblMensile[mar])-SUMIF(tblMensile[Tipo],"<>Redditi",tblMensile[mar]) -> € 2,522.50 | G49: =SUMIF(tblMensile[Tipo],"Redditi",tblMensile[apr])-SUMIF(tblMensile[Tipo],"<>Redditi",tblMensile[apr]) -> € 3,427.50 | H49: =SUMIF(tblMensile[Tipo],"Redditi",tblMensile[Maggio])-SUMIF(tblMensile[Tipo],"<>Redditi",tblMensile[Maggio]) -> € 2,887.50 | I49: =SUMIF(tblMensile[Tipo],"Redditi",tblMensile[giu])-SUMIF(tblMensile[Tipo],"<>Redditi",tblMensile[giu]) -> € 2,602.50 | J49: =SUMIF(tblMensile[Tipo],"Redditi",tblMensile[lug])-SUMIF(tblMensile[Tipo],"<>Redditi",tblMensile[lug]) -> € 0.00 | K49: =SUMIF(tblMensile[Tipo],"Redditi",tblMensile[ago])-SUMIF(tblMensile[Tipo],"<>Redditi",tblMensile[ago]) -> € 0.00 | L49: =SUMIF(tblMensile[Tipo],"Redditi",tblMensile[set])-SUMIF(tblMensile[Tipo],"<>Redditi",tblMensile[set]) -> € 0.00 | M49: =SUMIF(tblMensile[Tipo],"Redditi",tblMensile[ott])-SUMIF(tblMensile[Tipo],"<>Redditi",tblMensile[ott]) -> € 0.00 | N49: =SUMIF(tblMensile[Tipo],"Redditi",tblMensile[nov])-SUMIF(tblMensile[Tipo],"<>Redditi",tblMensile[nov]) -> € 0.00 | O49: =SUMIF(tblMensile[Tipo],"Redditi",tblMensile[dic])-SUMIF(tblMensile[Tipo],"<>Redditi",tblMensile[dic]) -> € 0.00 | P49: =SUMIF(tblMensile[Tipo],"Redditi",tblMensile[Totale])-SUMIF(tblMensile[Tipo],"<>Redditi",tblMensile[Totale]) -> € 18,380.00

Sheet Liquidità giornaliera
B1: LIQUIDITÀ PERSONALE
B2: =LiquiditàGiornaliera -> € 577.84 | H2: NOTA: per aggiungere voci giornaliere alla tabella, stimarne l'importo o il valore mensile e inserirlo nella colonna del mese appropriato.
B4: RIEPILOGO GIORNALIERO
B5: TOTALI1 | D5: Giornaliero | E5: Mensile | F5: Annuale
B6: Redditi | D6: =SUMIF(tblGiornaliera[Tipo],tblTotaliGiornalieri[[#This Row],[TOTALI1]],tblGiornaliera[Giornaliero]) -> € 342.47 | E6: =SUMIF(tblGiornaliera[Tipo],tblTotaliGiornalieri[[#This Row],[TOTALI1]],tblGiornaliera[Mensile]) -> € 10,416.80 | F6: =SUMIF(tblGiornaliera[Tipo],tblTotaliGiornalieri[[#This Row],[TOTALI1]],tblGiornaliera[Annuale]) -> € 125,001.55
B7: Spese | D7: =SUMIF(tblGiornaliera[Tipo],tblTotaliGiornalieri[[#This Row],[TOTALI1]],tblGiornaliera[Giornaliero]) -> € 136.06 | E7: =SUMIF(tblGiornaliera[Tipo],tblTotaliGiornalieri[[#This Row],[TOTALI1]],tblGiornaliera[Mensile]) -> € 4,138.49 | F7: =SUMIF(tblGiornaliera[Tipo],tblTotaliGiornalieri[[#This Row],[TOTALI1]],tblGiornaliera[Annuale]) -> € 49,661.90
B8: Discrezionali | D8: =SUMIF(tblGiornaliera[Tipo],tblTotaliGiornalieri[[#This Row],[TOTALI1]],tblGiornaliera[Giornaliero]) -> € 36.29 | E8: =SUMIF(tblGiornaliera[Tipo],tblTotaliGiornalieri[[#This Row],[TOTALI1]],tblGiornaliera[Mensile]) -> € 1,103.82 | F8: =SUMIF(tblGiornaliera[Tipo],tblTotaliGiornalieri[[#This Row],[TOTALI1]],tblGiornaliera[Annuale]) -> € 13,245.85
B9: Risparmi | D9: =SUMIF(tblGiornaliera[Tipo],tblTotaliGiornalieri[[#This Row],[TOTALI1]],tblGiornaliera[Giornaliero]) -> € 63.02 | E9: =SUMIF(tblGiornaliera[Tipo],tblTotaliGiornalieri[[#This Row],[TOTALI1]],tblGiornaliera[Mensile]) -> € 1,916.86 | F9: =SUMIF(tblGiornaliera[Tipo],tblTotaliGiornalieri[[#This Row],[TOTALI1]],tblGiornaliera[Annuale]) -> € 23,002.30
B12: Tipo | C12: Descrizione | D12: Giornaliero | E12: Mensile | F12: Annuale
B13: Redditi | C13: Stipendio | D13: € 246.58 | E13: =tblGiornaliera[[#This Row],[Annuale]]/12 -> € 7,500.14 | F13: =tblGiornaliera[[#This Row],[Giornaliero]]*365 -> € 90,001.70
B14: Redditi | C14: Commissioni/bonus | D14: € 13.70 | E14: =tblGiornaliera[[#This Row],[Annuale]]/12 -> € 416.71 | F14: =tblGiornaliera[[#This Row],[Giornaliero]]*365 -> € 5,000.50
B15: Redditi | C15: Altro 1 | D15: € 82.19 | E15: =tblGiornaliera[[#This Row],[Annuale]]/12 -> € 2,499.95 | F15: =tblGiornaliera[[#This Row],[Giornaliero]]*365 -> € 29,999.35
B16: Redditi | C16: Altro 2 | D16: € 0.00 | E16: =tblGiornaliera[[#This Row],[Annuale]]/12 -> € 0.00 | F16: =tblGiornaliera[[#This Row],[Giornaliero]]*365 -> € 0.00
B17: Redditi | C17: Altro 3 | D17: € 0.00 | E17: =tblGiornaliera[[#This Row],[Annuale]]/12 -> € 0.00 | F17: =tblGiornaliera[[#This Row],[Giornaliero]]*365 -> € 0.00
B18: Redditi | C18: Altro 4 | D18: € 0.00 | E18: =tblGiornaliera[[#This Row],[Annuale]]/12 -> € 0.00 | F18: =tblGiornaliera[[#This Row],[Giornaliero]]*365 -> € 0.00
B19: Spese | C19: Assicurazione sanitaria | D19: € 41.10 | E19: =tblGiornaliera[[#This Row],[Annuale]]/12 -> € 1,250.13 | F19: =tblGiornaliera[[#This Row],[Giornaliero]]*365 -> € 15,001.50
B20: Spese | C20: Imposte | D20: € 6.85 | E20: =tblGiornaliera[[#This Row],[Annuale]]/12 -> € 208.35 | F20: =tblGiornaliera[[#This Row],[Giornaliero]]*365 -> € 2,500.25
B21: Spese | C21: Tassa auto | D21: € 0.55 | E21: =tblGiornaliera[[#This Row],[Annuale]]/12 -> € 16.73 | F21: =tblGiornaliera[[#This Row],[Giornaliero]]*365 -> € 200.75
B22: Spese | C22: Pagamenti auto | D22: € 10.96 | E22: =tblGiornaliera[[#This Row],[Annuale]]/12 -> € 333.37 | F22: =tblGiornaliera[[#This Row],[Giornaliero]]*365 -> € 4,000.40
B23: Spese | C23: Mutuo/Affitto | D23: € 41.10 | E23: =tblGiornaliera[[#This Row],[Annuale]]/12 -> € 1,250.13 | F23: =tblGiornaliera[[#This Row],[Giornaliero]]*365 -> € 15,001.50
B24: Spese | C24: Assicurazione | D24: € 0.68 | E24: =tblGiornaliera[[#This Row],[Annuale]]/12 -> € 20.68 | F24: =tblGiornaliera[[#This Row],[Giornaliero]]*365 -> € 248.20
B25: Spese | C25: Elettricità | D25: € 3.29 | E25: =tblGiornaliera[[#This Row],[Annuale]]/12 -> € 100.07 | F25: =tblGiornaliera[[#This Row],[Giornaliero]]*365 -> € 1,200.85
B26: Spese | C26: Gas | D26: € 1.64 | E26: =tblGiornaliera[[#This Row],[Annuale]]/12 -> € 49.88 | F26: =tblGiornaliera[[#This Row],[Giornaliero]]*365 -> € 598.60
B27: Spese | C27: Acqua | D27: € 1.64 | E27: =tblGiornaliera[[#This Row],[Annuale]]/12 -> € 49.88 | F27: =tblGiornaliera[[#This Row],[Giornaliero]]*365 -> € 598.60
B28: Spese | C28: Fognatura | D28: € 0.82 | E28: =tblGiornaliera[[#This Row],[Annuale]]/12 -> € 24.94 | F28: =tblGiornaliera[[#This Row],[Giornaliero]]*365 -> € 299.30
B29: Spese | C29: Spazzatura | D29: € 0.41 | E29: =tblGiornaliera[[#This Row],[Annuale]]/12 -> € 12.47 | F29: =tblGiornaliera[[#This Row],[Giornaliero]]*365 -> € 149.65
B30: Spese | C30: Telefono | D30: € 1.64 | E30: =tblGiornaliera[[#This Row],[Annuale]]/12 -> € 49.88 | F30: =tblGiornaliera[[#This Row],[Giornaliero]]*365 -> € 598.60
B31: Spese | C31: Internet | D31: € 1.64 | E31: =tblGiornaliera[[#This Row],[Annuale]]/12 -> € 49.88 | F31: =tblGiornaliera[[#This Row],[Giornaliero]]*365 -> € 598.60
B32: Spese | C32: Assicurazione sulla vita | D32: € 4.11 | E32: =tblGiornaliera[[#This Row],[Annuale]]/12 -> € 125.01 | F32: =tblGiornaliera[[#This Row],[Giornaliero]]*365 -> € 1,500.15
B33: Spese | C33: Cibo | D33: € 13.70 | E33: =tblGiornaliera[[#This Row],[Annuale]]/12 -> € 416.71 | F33: =tblGiornaliera[[#This Row],[Giornaliero]]*365 -> € 5,000.50
B34: Spese | C34: Abbigliamento | D34: € 3.29 | E34: =tblGiornaliera[[#This Row],[Annuale]]/12 -> € 100.07 | F34: =tblGiornaliera[[#This Row],[Giornaliero]]*365 -> € 1,200.85
B35: Spese | C35: Spese mediche | D35: € 1.64 | E35: =tblGiornaliera[[#This Row],[Annuale]]/12 -> € 49.88 | F35: =tblGiornaliera[[#This Row],[Giornaliero]]*365 -> € 598.60
B36: Spese | C36: Mezzi pubblici | D36: € 1.00 | E36: =tblGiornaliera[[#This Row],[Annuale]]/12 -> € 30.42 | F36: =tblGiornaliera[[#This Row],[Giornaliero]]*365 -> € 365.00
B37: Spese | C37: Altro 2 | D37: € 0.00 | E37: =tblGiornaliera[[#This Row],[Annuale]]/12 -> € 0.00 | F37: =tblGiornaliera[[#This Row],[Giornaliero]]*365 -> € 0.00
B38: Spese | C38: Altro 3 | D38: € 0.00 | E38: =tblGiornaliera[[#This Row],[Annuale]]/12 -> € 0.00 | F38: =tblGiornaliera[[#This Row],[Giornaliero]]*365 -> € 0.00
B39: Spese | C39: Altro 4 | D39: € 0.00 | E39: =tblGiornaliera[[#This Row],[Annuale]]/12 -> € 0.00 | F39: =tblGiornaliera[[#This Row],[Giornaliero]]*365 -> € 0.00
B40: Discrezionali | C40: Ristoranti | D40: € 3.29 | E40: =tblGiornaliera[[#This Row],[Annuale]]/12 -> € 100.07 | F40: =tblGiornaliera[[#This Row],[Giornaliero]]*365 -> € 1,200.85
B41: Discrezionali | C41: Regali | D41: € 1.64 | E41: =tblGiornaliera[[#This Row],[Annuale]]/12 -> € 49.88 | F41: =tblGiornaliera[[#This Row],[Giornaliero]]*365 -> € 598.60
B42: Discrezionali | C42: Viaggi | D42: € 6.16 | E42: =tblGiornaliera[[#This Row],[Annuale]]/12 -> € 187.37 | F42: =tblGiornaliera[[#This Row],[Giornaliero]]*365 -> € 2,248.40
B43: Discrezionali | C43: Svaghi | D43: € 3.29 | E43: =tblGiornaliera[[#This Row],[Annuale]]/12 -> € 100.07 | F43: =tblGiornaliera[[#This Row],[Giornaliero]]*365 -> € 1,200.85
B44: Discrezionali | C44: Cura personale | D44: € 0.82 | E44: =tblGiornaliera[[#This Row],[Annuale]]/12 -> € 24.94 | F44: =tblGiornaliera[[#This Row],[Giornaliero]]*365 -> € 299.30
B45: Discrezionali | C45: Acquisti | D45: € 5.48 | E45: =tblGiornaliera[[#This Row],[Annuale]]/12 -> € 166.68 | F45: =tblGiornaliera[[#This Row],[Giornaliero]]*365 -> € 2,000.20
B46: Discrezionali | C46: Beneficenza | D46: € 1.64 | E46: =tblGiornaliera[[#This Row],[Annuale]]/12 -> € 49.88 | F46: =tblGiornaliera[[#This Row],[Giornaliero]]*365 -> € 598.60
B47: Discrezionali | C47: Iscrizioni a gruppi | D47: € 0.82 | E47: =tblGiornaliera[[#This Row],[Annuale]]/12 -> € 24.94 | F47: =tblGiornaliera[[#This Row],[Giornaliero]]*365 -> € 299.30
B48: Discrezionali | C48: Ristrutturazioni casa | D48: € 13.15 | E48: =tblGiornaliera[[#This Row],[Annuale]]/12 -> € 399.98 | F48: =tblGiornaliera[[#This Row],[Giornaliero]]*365 -> € 4,799.75
B49: Discrezionali | C49: Altro 1 | D49: € 0.00 | E49: =tblGiornaliera[[#This Row],[Annuale]]/12 -> € 0.00 | F49: =tblGiornaliera[[#This Row],[Giornaliero]]*365 -> € 0.00
B50: Discrezionali | C50: Altro 2 | D50: € 0.00 | E50: =tblGiornaliera[[#This Row],[Annuale]]/12 -> € 0.00 | F50: =tblGiornaliera[[#This Row],[Giornaliero]]*365 -> € 0.00
B51: Risparmi | C51: Liquidità | D51: € 13.70 | E51: =tblGiornaliera[[#This Row],[Annuale]]/12 -> € 416.71 | F51: =tblGiornaliera[[#This Row],[Giornaliero]]*365 -> € 5,000.50
B52: Risparmi | C52: Fondi pensione | D52: € 32.88 | E52: =tblGiornaliera[[#This Row],[Annuale]]/12 -> € 1,000.10 | F52: =tblGiornaliera[[#This Row],[Giornaliero]]*365 -> € 12,001.20
B53: Risparmi | C53: Risparmi/Investimenti | D53: € 16.44 | E53: =tblGiornaliera[[#This Row],[Annuale]]/12 -> € 500.05 | F53: =tblGiornaliera[[#This Row],[Giornaliero]]*365 -> € 6,000.60
B54: Risparmi | C54: Altro 1 | D54: € 0.00 | E54: =tblGiornaliera[[#This Row],[Annuale]]/12 -> € 0.00 | F54: =tblGiornaliera[[#This Row],[Giornaliero]]*365 -> € 0.00
B55: Risparmi | C55: Altro 2 | D55: € 0.00 | E55: =tblGiornaliera[[#This Row],[Annuale]]/12 -> € 0.00 | F55: =tblGiornaliera[[#This Row],[Giornaliero]]*365 -> € 0.00
B56: Totale | D56: =SUMIF(tblGiornaliera[Tipo],"Redditi",tblGiornaliera[Giornaliero])-SUMIF(tblGiornaliera[Tipo],"<>Redditi",tblGiornaliera[Giornaliero]) -> € 107.10 | E56: =SUMIF(tblGiornaliera[Tipo],"Redditi",tblGiornaliera[Mensile])-SUMIF(tblGiornaliera[Tipo],"<>Redditi",tblGiornaliera[Mensile]) -> € 3,257.63 | F56: =SUMIF(tblGiornaliera[Tipo],"Redditi",tblGiornaliera[Annuale])-SUMIF(tblGiornaliera[Tipo],"<>Redditi",tblGiornaliera[Annuale]) -> € 39,091.50
